bitfinex/quotes_SOLUSD_20260119
["timestamp","ask_amount","ask_price","bid_price","bid_amount"]
[1768804812850,1.52364816,132.83,132.81,2.44126024]
[1768804813043,1.52364816,132.83,132.81,2.41126024]
[1768804814465,1.52364816,132.84,132.82,2.44126024]
[1768804815458,9.0517359,132.84,132.8,0.62848845]
[1768804815655,9.0517359,132.84,132.81,2.44126024]
[1768804816073,1.52364816,132.83,132.81,2.44126024]
[1768804816667,9.0517359,132.84,132.81,2.44126024]
[1768804819170,1.52364816,132.83,132.81,2.44126024]
[1768804822270,1.52364816,132.82,132.79,0.65241885]
[1768804822451,1.52364816,132.82,132.79,3.09367909]
[1768804823466,9.05272536,132.82,132.79,3.09367909]
[1768804824276,9.05272536,132.82,132.79,0.65241885]
[1768804825076,9.05272536,132.82,132.79,3.09367909]
[1768804825973,9.12742435,132.83,132.8,2.44126024]
[1768804827980,9.12742435,132.83,132.8,3.11270564]
[1768804830066,9.1261248,132.85,132.82,3.11876035]
[1768804830266,9.1261248,132.85,132.82,3.08876035]
[1768804831585,18.09883839,132.86,132.82,3.08876035]
[1768804831762,25.62562988,132.86,132.83,2.44126024]
[1768804831963,1.59883839,132.86,132.83,2.41126024]
[1768804832358,1.59883839,132.87,132.84,2.44126024]
[1768804832975,1.79883839,132.88,132.85,2.44126024]
[1768804833181,1.79883839,132.88,132.85,3.0975841]
[1768804833378,0.2,132.88,132.86,2.44126024]
[1768804833583,0.2,132.88,132.86,3.10045804]
[1768804834378,0.2,132.88,132.86,2.44126024]
[1768804835090,0.15,132.88,132.86,2.44126024]
[1768804835776,1.74883839,132.88,132.86,2.44126024]
[1768804836089,1.74883839,132.88,132.83,0.66484704]
[1768804836090,1.59883839,132.87,132.83,0.66484704]
[1768804836383,1.59883839,132.87,132.83,3.10610728]
[1768804836595,1.59883839,132.85,132.81,10.63837248]
[1768804836978,1.59883839,132.85,132.82,2.44126024]
[1768804837776,1.59883839,132.85,132.82,9.97020941]
[1768804839295,1.52481621,132.86,132.82,10.64932275]
[1768804839474,1.52481621,132.87,132.84,2.44126024]
[1768804840991,1.52481621,132.87,132.85,2.44126024]
[1768804841577,1.67481621,132.88,132.85,2.44126024]
[1768804842186,0.15,132.88,132.86,3.12854609]
[1768804842498,0.15,132.88,132.87,2.44126024]
[1768804842994,9.04931099,132.9,132.87,2.44126024]
[1768804845796,1.52481621,132.9,132.87,2.44126024]
[1768804846001,1.52481621,132.9,132.88,2.44126024]
[1768804847780,1.52481621,132.91,132.88,2.44126024]
[1768804848582,1.52481621,132.91,132.89,2.44126024]
[1768804848784,1.52481621,132.91,132.89,2.41126024]
[1768804848985,1.52481621,132.92,132.9,2.44126024]
[1768804849184,9.2477682,132.93,132.9,2.44126024]
[1768804849601,1.52481621,132.92,132.9,2.44126024]
[1768804850306,1.52481621,132.92,132.89,2.44126024]
[1768804850704,1.52481621,132.92,132.89,2.41126024]
[1768804850905,1.52481621,132.92,132.9,2.44126024]
[1768804851289,1.72481621,132.93,132.91,2.44126024]
[1768804851996,0.2,132.93,132.92,2.44126024]
[1768804852204,1.72481621,132.94,132.92,2.44126024]
[1768804853501,1.72481621,132.94,132.92,2.41126024]
[1768804853915,1.68078291,132.93,132.88,0.71728524]
[1768804854218,1.68078291,132.93,132.9,2.44126024]
[1768804854902,1.68078291,132.93,132.89,8.24428421]
[1768804855096,1.68078291,132.93,132.9,2.44126024]
[1768804856108,1.68078291,132.93,132.89,8.24428421]
[1768804856308,9.20362275,132.93,132.89,10.68554445]
[1768804856515,1.68078291,132.92,132.89,10.68554445]
[1768804856893,1.68078291,132.92,132.89,2.44126024]
[1768804858504,1.68078291,132.92,132.89,9.9661918]
[1768804859117,1.68078291,132.92,132.89,7.52493156]
[1768804859422,1.68078291,132.92,132.89,9.9661918]
[1768804859997,9.2036208,132.93,132.89,10.69698741]
[1768804860196,9.2036208,132.93,132.9,2.44126024]
[1768804860815,1.68078291,132.92,132.9,2.44126024]
[1768804861295,0.2,132.94,132.9,11.61101646]
[1768804861496,0.2,132.94,132.91,4.08667068]
[1768804862427,7.72234538,132.94,132.91,4.08667068]
[1768804863214,9.40312829,132.94,132.91,4.08667068]
[1768804863513,0.2,132.94,132.92,1.64541044]
[1768804863727,0.2,132.94,132.92,4.08667068]
[1768804863926,0.2,132.94,132.92,2.44126024]
[1768804864442,1.68078291,132.93,132.9,1.64541044]
[1768804864600,1.68078291,132.93,132.9,4.08667068]
[1768804865429,1.68078291,132.93,132.9,11.61092954]
[1768804865631,1.68078291,132.93,132.91,2.44126024]
[1768804866134,9.40306025,132.94,132.91,2.44126024]
[1768804866924,9.40306025,132.94,132.91,2.43504134]
[1768804868929,9.40306025,132.94,132.92,2.43504134]
[1768804869102,9.40306025,132.94,132.9,9.16985408]
[1768804869297,9.40306025,132.94,132.91,2.43504134]
[1768804870234,9.40306025,132.94,132.9,11.60489542]
[1768804871820,9.40306025,132.94,132.91,4.08045178]
[1768804872014,9.40306025,132.94,132.91,1.64541044]
[1768804872216,9.40306025,132.94,132.91,4.08045178]
[1768804873427,1.68078291,132.91,132.87,1.64541044]
[1768804873617,1.68078291,132.91,132.88,11.60570737]
[1768804873818,1.68078291,132.93,132.89,2.43504134]
[1768804874527,7.52302405,132.93,132.89,2.43504134]
[1768804874831,1.68078291,132.92,132.89,4.08045178]
[1768804875031,1.68078291,132.92,132.89,11.60533114]
[1768804875233,9.20380696,132.93,132.89,11.60533114]
[1768804876624,9.20380696,132.93,132.9,2.43504134]
[1768804877628,1.88078291,132.94,132.91,4.08045178]
[1768804878040,1.88078291,132.94,132.91,1.64541044]
[1768804878330,1.88078291,132.94,132.91,4.05045178]
[1768804878528,0.2,132.94,132.92,2.43504134]
[1768804879109,9.20260245,132.95,132.92,2.43504134]
[1768804879917,1.68078291,132.95,132.92,9.95831851]
[1768804880212,9.40131305,132.97,132.94,1.64541044]
[1768804880424,1.88078291,132.97,132.94,1.64541044]
[1768804881018,1.88078291,132.97,132.93,2.43504134]
[1768804881019,1.88078291,132.97,132.93,4.08045178]
[1768804882238,1.88078291,132.97,132.93,11.60311569]
[1768804882925,9.40133994,132.97,132.93,11.60311569]
[1768804883539,9.40133994,132.97,132.93,9.95770525]
[1768804883729,9.40133994,132.97,132.94,1.63855398]
[1768804883926,9.40133994,132.97,132.94,4.07359532]
[1768804884239,9.40133994,132.97,132.94,1.63855398]
[1768804884439,0.2,132.97,132.94,11.5957299]
[1768804884638,1.88087995,132.97,132.94,4.07359532]
[1768804887137,18.7949736,133.02,132.96,4.07359532]
[1768804887442,1.68087995,133.01,132.98,2.43504134]
[1768804887827,1.68087995,133.02,133.0,2.43504134]
[1768804888618,9.19864993,133.02,132.99,1.63855398]
[1768804888833,1.68087995,133.02,132.99,1.63855398]
[1768804889133,1.68087995,133.02,133.0,2.43504134]
[1768804889531,9.39703537,133.05,133.01,4.07359532]
[1768804889841,9.39703537,133.05,133.02,2.43504134]
[1768804890139,1.68087995,133.04,133.02,2.43504134]
[1768804890335,1.68087995,133.04,133.01,4.07359532]
[1768804891520,1.68087995,133.04,133.01,4.04359532]
[1768804895121,1.68087995,133.04,133.01,1.60855398]
[1768804895641,9.19755239,133.04,133.0,2.43504134]
[1768804895830,1.68087995,133.03,132.99,2.43504134]
[1768804896143,1.68087995,133.03,132.98,4.07359532]
[1768804896344,1.68087995,133.03,132.98,11.59334508]
[1768804896345,1.68087995,133.02,132.98,11.59334508]
[1768804896555,1.68087995,133.01,132.97,1.63855398]
[1768804896721,1.68087995,133.01,132.97,4.07359532]
[1768804897153,1.68087995,133.0,132.95,11.59502673]
[1768804897554,4.11592129,133.0,132.95,11.59502673]
[1768804897867,1.68087995,132.99,132.95,11.59502673]
[1768804900725,1.68087995,132.99,132.95,9.15998539]
[1768804900920,1.68087995,132.99,132.95,11.59502673]
[1768804902248,1.68087995,132.99,132.96,1.56770951]
[1768804902645,1.68087995,132.99,132.95,11.52418226]
[1768804905058,1.66838269,132.98,132.95,1.56770951]
[1768804905263,1.66838269,132.97,132.94,1.56770951]
[1768804905441,1.66838269,132.97,132.93,9.09022687]
[1768804905638,1.66838269,132.97,132.93,1.56770951]
[1768804905843,1.66838269,132.96,132.92,9.0908346]
[1768804906144,1.66838269,132.96,132.92,11.52587594]
[1768804907547,1.66838269,132.96,132.92,9.0908346]
[1768804908863,1.66838269,132.95,132.92,1.56770951]
[1768804909065,4.10342403,132.95,132.92,1.56770951]
[1768804909561,1.66838269,132.95,132.92,1.56770951]
[1768804915969,1.66410315,132.96,132.93,1.73651611]
[1768804921066,1.66410315,132.98,132.94,1.73651611]
[1768804922263,1.66410315,132.98,132.94,9.25846687]
[1768804923487,1.66410315,132.97,132.94,7.52195076]
[1768804923794,4.09914449,132.96,132.92,9.25953279]
[1768804926881,4.0989312,132.96,132.92,9.25953279]
[1768804927785,1.66410315,132.96,132.92,9.25953279]
[1768804927985,1.66410315,132.97,132.94,1.73651611]
[1768804928290,1.66410315,132.97,132.93,7.52244541]
[1768804928590,1.66410315,132.97,132.93,9.25896152]
[1768804932371,1.66410315,132.97,132.94,1.73651611]
[1768804932770,1.66410315,132.98,132.94,1.73651611]
[1768804933395,1.66410315,132.98,132.94,4.17134416]
[1768804934993,1.66410315,132.98,132.95,7.52162467]
[1768804936595,4.0989312,132.98,132.95,7.52162467]
[1768804939394,1.66410315,132.98,132.95,1.73651611]
[1768804941188,4.0989312,132.98,132.95,1.73651611]
[1768804942402,4.0989312,132.98,132.96,1.2]
[1768804942603,4.0989312,132.98,132.96,1.14]
[1768804952601,1.66410315,132.98,132.96,1.14]
[1768804952809,4.0989312,132.98,132.96,1.14]
[1768804953205,1.66410315,132.98,132.96,1.14]
[1768804953406,1.66410315,132.98,132.96,2.87517577]
[1768804954204,1.66410315,132.98,132.96,1.14]
[1768804954796,4.16590181,132.99,132.96,2.87517577]
[1768804955410,1.73107376,132.98,132.96,2.87517577]
[1768804964502,1.73107376,132.98,132.96,10.39584738]
[1768804964819,1.72686521,132.99,132.96,10.39584738]
[1768804973332,4.15523962,133.0,132.97,1.75998646]
[1768804973519,1.72041157,133.02,132.98,1.75998646]
[1768804973725,1.72041157,133.02,132.99,1.75998646]
[1768804975032,1.72041157,133.02,132.99,9.27900753]
[1768804977042,1.72041157,133.02,132.97,26.32095139]
[1768804977224,1.72041157,132.97,132.93,1.75998646]
[1768804977420,2.43482805,132.96,132.93,1.75998646]
[1768804977727,4.15523962,132.96,132.93,1.75998646]
[1768804978125,1.72041157,132.96,132.93,9.2824668]
[1768804980516,4.15523962,132.96,132.93,9.2824668]
[1768804981045,1.72041157,132.96,132.93,9.2824668]
[1768804981223,4.15523962,132.96,132.93,9.2824668]
[1768804981418,1.72041157,132.96,132.93,9.2824668]
[1768804983220,1.72041157,132.96,132.94,0.6]
[1768804984843,1.72041157,132.96,132.94,9.88177851]
[1768804986647,1.72041157,132.98,132.95,9.28141444]
[1768804988741,1.72041157,132.99,132.96,1.75998646]
[1768804989146,1.72041157,132.99,132.96,4.19328933]
[1768804989346,1.72041157,132.99,132.96,1.75998646]
[1768804990024,1.72041157,132.99,132.96,9.28070193]
[1768804991625,1.72041157,133.0,132.97,1.75998646]
[1768804992246,1.05944115,132.97,132.89,1.75998646]
[1768804992442,1.05944115,132.97,132.81,45.45501372]
[1768804992443,3.49274402,132.96,132.91,1.75998646]
[1768804992650,3.49274402,132.96,132.92,1.75998646]
[1768804993653,1.05944115,132.96,132.92,9.2831699]
[1768804993851,3.49274402,132.96,132.92,9.2831699]
[1768804995049,1.06012499,132.97,132.93,1.75998646]
[1768804995231,3.4937639,132.99,132.95,1.75998646]
[1768804995852,1.06046103,132.98,132.95,1.75998646]
[1768804998755,1.05493058,132.99,132.95,9.2814467]
[1768804998926,1.05493058,132.99,132.95,11.71474957]
[1768804999748,1.05493058,132.99,132.96,1.75998646]
[1768805000554,1.05493058,132.99,132.96,9.28071371]
[1768805000751,3.47606397,133.0,132.96,9.28071371]
[1768805001432,1.0427611,133.0,132.96,11.71401658]
[1768805002633,1.0427611,133.0,132.97,1.63968598]
[1768805002833,10.97669147,133.01,132.98,1.63968598]
[1768805003434,10.97669147,133.01,132.97,9.16010738]
[1768805004641,10.97669147,133.01,132.97,1.63968598]
[1768805005357,7.51836256,133.01,132.97,1.63968598]
[1768805005658,9.95166543,133.01,132.97,1.63968598]
[1768805005867,10.95956054,133.01,132.97,1.63968598]
[1768805006237,1.00231547,133.0,132.97,1.63968598]
[1768805007246,10.94846535,133.01,132.97,9.16015041]
[1768805007936,8.51516248,133.01,132.97,9.16015041]
[1768805008236,10.94846535,133.01,132.97,9.16015041]
[1768805009759,8.51516248,133.01,132.97,9.16015041]
[1768805009955,8.51516248,133.01,132.97,11.59345328]
[1768805010256,8.51516248,133.01,132.98,1.63968598]
[1768805010633,10.94846535,133.01,132.98,1.63968598]
[1768805010837,8.51516248,133.01,132.98,1.63968598]
[1768805011059,10.94846535,133.01,132.98,1.63968598]
[1768805011641,8.51516248,133.01,132.97,1.63968598]
[1768805011841,10.94846535,133.01,132.97,1.63968598]
[1768805012753,2.43330287,133.0,132.96,1.63968598]
[1768805012987,0.970158,132.99,132.96,1.63968598]
[1768805015558,0.970158,132.99,132.95,11.59461352]
[1768805016058,0.970158,132.99,132.96,1.63968598]
[1768805018459,10.92296357,132.99,132.95,7.52162467]
[1768805018645,0.94015403,132.98,132.95,9.16131065]
[1768805019255,0.93060605,132.97,132.94,1.61196463]
[1768805023162,0.93060605,132.97,132.94,9.13413308]
[1768805028166,10.84360913,132.98,132.95,1.61196463]
[1768805033074,8.41030626,132.98,132.95,1.61196463]
[1768805034376,8.35030627,132.98,132.95,1.61196463]
[1768805035373,10.78360914,132.98,132.95,1.61196463]
[1768805035772,10.72360915,132.98,132.95,1.61196463]
[1768805036264,8.29030628,132.98,132.95,1.61196463]
[1768805036473,10.72360915,132.98,132.95,1.61196463]
[1768805037471,10.66360916,132.98,132.95,1.61196463]
[1768805038472,8.1703063,132.98,132.95,1.61196463]
[1768805038975,8.11030631,132.98,132.95,1.61196463]
[1768805042964,0.83169377,132.97,132.94,1.644813]
[1768805043282,3.20499665,132.97,132.94,1.644813]
[1768805043587,2.43330287,132.96,132.92,1.644813]
[1768805043883,2.43330287,132.94,132.9,1.644813]
[1768805044082,16.48,132.97,132.9,1.644813]
[1768805044279,2.43330287,132.95,132.91,1.644813]
[1768805045184,3.1979259,132.95,132.91,1.644813]
[1768805045683,2.43330287,132.94,132.91,1.644813]
[1768805046180,3.13792591,132.95,132.91,1.644813]
[1768805047471,9.95549333,132.94,132.91,1.644813]
[1768805047673,10.6498119,132.94,132.91,1.644813]
[1768805048778,0.69125855,132.93,132.9,1.644813]
[1768805049278,7.52219046,132.94,132.92,1.644813]
[1768805050684,8.21001531,132.95,132.92,1.644813]
[1768805050890,9.95711257,132.95,132.92,1.644813]
[1768805053276,10.6339628,132.95,132.92,1.644813]
[1768805053594,0.67685023,132.94,132.91,1.644813]
[1768805053981,29.43802447,132.95,132.91,1.644813]
[1768805058986,7.5225249,132.94,132.91,1.644813]
[1768805059713,7.46252491,132.94,132.91,1.644813]
[1768805060374,7.40252492,132.94,132.91,1.644813]
[1768805060576,7.52186257,132.95,132.92,1.644813]
[1768805060993,9.95638989,132.96,132.92,1.644813]
[1768805061194,10.61222943,132.96,132.92,1.644813]
[1768805064404,7.52105896,132.96,132.93,1.55859095]
[1768805065106,8.16662543,132.97,132.93,1.55859095]
[1768805065280,8.16662543,132.97,132.94,1.55859095]
[1768805074308,7.52017056,132.98,132.96,1.55859095]
[1768805074607,7.52017056,132.98,132.97,1.55859095]
[1768805074906,7.52017056,132.98,132.95,2.43533093]
[1768805077114,7.52017056,132.98,132.96,1.55859095]
[1768805079318,9.05727857,132.99,132.96,1.55859095]
[1768805087827,7.51879736,133.0,132.97,1.59740419]
[1768805091009,20.36972608,133.01,132.98,1.59740419]
[1768805091010,7.51837167,133.01,132.98,1.59740419]
[1768805091522,9.09187495,133.01,132.98,1.59740419]
[1768805093228,11.52720588,133.01,132.98,1.59740419]
[1768805093626,1.53844968,132.99,132.95,11.43482023]
[1768805094207,1.53844968,132.99,132.95,1.47790591]
[1768805094208,1.53844968,132.98,132.95,1.47790591]
[1768805098536,1.53844968,132.97,132.95,1.47790591]
[1768805099318,9.05846117,132.98,132.95,1.47790591]
[1768805101426,1.53844968,132.98,132.96,1.47790591]
[1768805101629,9.05750602,133.0,132.97,1.47790591]
[1768805104930,1.53844968,133.01,132.97,2.43533093]
[1768805105136,9.05701713,133.01,132.98,1.47790591]
[1768805105441,1.53844968,133.01,132.98,1.47790591]
[1768805105740,9.05630075,133.02,132.99,1.47790591]
[1768805108229,9.05562999,133.03,132.99,1.47790591]
[1768805108740,1.53844968,133.02,132.99,1.47790591]
[1768805109435,9.05611722,133.02,132.99,1.47790591]
[1768805110922,1.53844968,133.01,132.98,1.47790591]
[1768805111747,9.05611722,133.02,132.99,1.47790591]
[1768805113742,1.53844968,133.01,132.98,1.47790591]
[1768805114857,1.53844968,133.0,132.98,1.47790591]
[1768805120063,9.05671795,133.01,132.98,1.47790591]
[1768805127649,8.88915438,133.03,132.99,1.40356131]
[1768805127850,8.88915438,133.03,133.0,1.40356131]
[1768805130760,1.37192637,133.04,133.01,1.40356131]
[1768805130961,9.088424,133.05,133.01,2.4324366]
[1768805132902,1.57192637,133.05,133.03,1.40356131]
[1768805133100,7.51488066,133.07,133.06,1.40356131]
[1768805133382,8.88680703,133.07,133.04,2.4324366]
[1768805135389,8.88680703,133.07,133.04,2.95940518]
[1768805135564,8.88680703,133.07,133.04,0.52696858]
[1768805136462,8.88680703,133.07,133.03,2.95461858]
[1768805138084,1.37192637,133.06,133.02,9.94958443]
[1768805138286,1.37192637,133.06,133.02,10.46209181]
[1768805141086,1.37192637,133.06,133.03,0.48797601]
[1768805142870,1.37192637,133.06,133.02,9.94958443]
[1768805143072,1.31989763,133.05,133.01,7.99007645]
[1768805143390,1.31989763,133.05,133.02,9.94996229]
[1768805144269,1.31989763,133.07,133.04,0.45656245]
[1768805144569,9.03458659,133.08,133.04,2.88899905]
[1768805144771,1.31989763,133.07,133.04,2.88899905]
[1768805146188,9.03458659,133.08,133.05,0.4413917]
[1768805146396,9.03458659,133.08,133.05,2.8738283]
[1768805148197,9.03458659,133.08,133.06,2.4324366]
[1768805148378,1.51989763,133.08,133.06,2.4324366]
[1768805148585,7.51392433,133.09,133.07,2.4324366]
[1768805148586,1.31989763,133.09,133.07,2.4324366]
[1768805150092,1.51989763,133.1,133.08,2.4324366]
[1768805151573,1.51989763,133.1,133.09,2.4324366]
[1768805152076,1.51989763,133.1,133.08,2.4324366]
[1768805153493,1.51989763,133.1,133.07,7.93387735]
[1768805153695,1.51989763,133.1,133.08,2.4324366]
[1768805154572,0.2,133.1,133.08,2.80973527]
[1768805154776,0.2,133.1,133.09,2.4324366]
[1768805154973,0.2,133.1,133.09,2.4024366]
[1768805155397,14.9148406,133.11,133.09,7.51371252]
[1768805155578,16.2827619,133.11,133.08,7.51425979]
[1768805155777,16.2827619,133.11,133.05,16.46]
[1768805155778,1.3679213,133.1,133.07,7.51459988]
[1768805156009,1.3679213,133.1,133.08,2.4324366]
[1768805156205,1.3679213,133.1,133.07,7.51459988]
[1768805156405,1.3679213,133.1,133.08,2.4324366]
[1768805156902,16.2827619,133.11,133.08,2.4324366]
[1768805157108,16.2827619,133.11,133.07,7.51459988]
[1768805157285,1.3679213,133.1,133.07,7.51459988]
[1768805157581,1.3679213,133.1,133.08,2.4324366]
[1768805157783,16.2827619,133.11,133.08,9.94662205]
[1768805159002,16.2827619,133.11,133.09,2.4324366]
[1768805159199,14.9148406,133.11,133.09,2.4324366]
[1768805160481,14.9148406,133.11,133.09,9.94610506]
[1768805161188,1.3679213,133.1,133.08,7.51412274]
[1768805161595,1.3679213,133.1,133.08,9.94655934]
[1768805161995,1.3679213,133.1,133.07,9.94707631]
[1768805162388,1.3679213,133.1,133.08,7.51425848]
[1768805162703,1.3679213,133.1,133.07,9.94707368]
[1768805163204,1.3679213,133.1,133.07,2.4324366]
[1768805163392,1.3679213,133.09,133.05,2.4324366]
[1768805165501,1.3679213,133.08,133.06,2.4324366]
[1768805166093,14.9148406,133.11,133.07,2.4324366]
[1768805166296,14.9148406,133.11,133.05,26.30589319]
[1768805166297,16.2827619,133.11,133.08,2.4324366]
[1768805166915,16.2827619,133.11,133.09,2.4324366]
[1768805167412,14.9148406,133.11,133.09,2.4324366]
[1768805168519,14.9148406,133.11,133.1,2.4324366]
[1768805168697,0.2,133.12,133.1,2.4324366]
[1768805168892,1.5679213,133.12,133.1,2.4324366]
[1768805171624,0.2,133.12,133.1,9.94554254]
[1768805172119,1.5679213,133.12,133.09,7.51330203]
[1768805172507,1.5679213,133.12,133.09,9.94573863]
[1768805174927,1.5679213,133.12,133.09,2.42840422]
[1768805175104,1.5679213,133.12,133.08,26.29892503]
[1768805175417,0.2,133.12,133.1,2.42840422]
[1768805177019,0.2,133.13,133.11,2.42840422]
[1768805177211,0.2,133.13,133.1,9.94107593]
[1768805177414,1.5679213,133.13,133.1,9.94107593]
[1768805178003,1.5679213,133.13,133.11,2.42840422]
[1768805178513,0.2,133.13,133.12,2.42840422]
[1768805179501,0.2,133.13,133.12,9.94042345]
[1768805179705,0.2,133.14,133.12,9.94042345]
[1768805180009,1.5679213,133.14,133.12,9.94042345]
[1768805181331,1.5679213,133.14,133.11,7.51258357]
[1768805181504,0.2,133.14,133.12,2.42840422]
[1768805181703,0.2,133.14,133.13,2.42840422]
[1768805182007,1.5679213,133.15,133.13,2.42840422]
[1768805183025,1.40921059,133.16,133.13,2.42840422]
[1768805184321,1.20921059,133.15,133.12,9.9400549]
[1768805186325,1.20921059,133.15,133.12,2.42840422]
[1768805188132,1.20921059,133.15,133.12,7.51197635]
[1768805188337,1.20921059,133.15,133.12,9.94038057]
[1768805189529,1.20921059,133.15,133.11,7.51234165]
[1768805189836,1.20921059,133.14,133.1,23.97303121]
[1768805190039,1.20921059,133.14,133.1,26.40143543]
[1768805190916,1.20921059,133.14,133.1,9.94143543]
[1768805191631,1.20921059,133.14,133.1,7.51303121]
[1768805191932,1.20921059,133.14,133.1,9.94143543]
[1768805192330,1.20921059,133.13,133.1,9.94143543]
[1768805193940,1.20921059,133.12,133.08,2.42840422]
[1768805194139,1.20921059,133.12,133.08,9.94228726]
[1768805198825,1.14917454,133.13,133.08,10.90290102]
[1768805200519,8.6611541,133.13,133.08,10.90290102]
[1768805200718,1.21528434,133.12,133.08,9.94228726]
[1768805202321,1.21528434,133.11,133.08,10.88628431]
[1768805203739,1.21528434,133.11,133.07,8.45454748]
[1768805204049,1.21528434,133.11,133.06,35.24813129]
[1768805204050,1.21528434,133.09,133.06,8.45501857]
[1768805205544,1.21528434,133.09,133.06,10.88342279]
[1768805208959,1.21528434,133.09,133.06,8.45501857]
[1768805209837,1.21528434,133.09,133.05,10.88331005]
[1768805212246,1.21528434,133.09,133.06,0.93877861]
[1768805212428,1.21528434,133.09,133.06,3.36718283]
[1768805212943,1.21528434,133.09,133.06,10.88247003]
[1768805215452,1.23363361,133.1,133.08,2.42840422]
[1768805215675,1.23363361,133.11,133.08,2.42840422]
[1768805218761,1.23363361,133.11,133.07,8.45268174]
[1768805219066,1.23363361,133.11,133.08,2.42840422]
[1768805219238,1.23363361,133.11,133.08,3.36634419]
[1768805221160,1.23363361,133.11,133.09,2.42840422]
[1768805226652,1.23363361,133.11,133.08,10.88007929]
[1768805228639,8.74637985,133.11,133.08,0.93749033]
[1768805228843,1.23363361,133.1,133.07,10.88001422]
[1768805230065,1.23363361,133.09,133.06,8.45208988]
[1768805230270,1.23363361,133.09,133.06,10.8804941]
[1768805231068,1.23363361,133.09,133.06,10.88037538]
[1768805231367,1.23363361,133.1,133.07,0.93655149]
[1768805232472,1.23363361,133.1,133.07,8.45136981]
[1768805233555,1.23363361,133.1,133.07,7.51481832]
[1768805234271,1.23363361,133.1,133.07,8.45107794]
[1768805235270,7.51331649,133.1,133.07,0.93625962]
[1768805235471,7.51331649,133.1,133.04,97.85046067]
[1768805235472,1.23363361,133.09,133.06,7.51532997]
[1768805235684,1.23363361,133.08,133.05,8.45179099]
[1768805236576,1.23363361,133.08,133.04,8.45257271]
[1768805236761,1.23363361,133.07,133.04,8.45257271]
[1768805237673,1.23363361,133.07,133.02,8.4532953]
[1768805237674,1.23363361,133.06,133.02,8.4532953]
[1768805237875,1.23363361,133.06,133.02,10.88264164]
[1768805241182,1.23363361,133.05,133.01,10.88328341]
[1768805242888,1.23363361,133.05,133.01,8.45393707]
[1768805242889,3.66297995,133.05,133.01,8.45393707]
[1768805243191,1.17945006,133.04,133.01,10.88328341]
[1768805243393,1.11509456,133.04,133.01,10.88328341]
[1768805246784,1.11509456,133.04,133.01,7.51823171]
[1768805246972,1.11509456,133.04,133.0,18.79674415]
[1768805246973,1.11509456,133.04,133.0,10.94745469]
[1768805247173,1.11509456,133.04,133.01,7.51812274]
[1768805247697,1.05509457,133.04,133.01,7.51812274]
[1768805247897,0.99509458,133.04,133.01,7.51812274]
[1768805249297,0.99509458,133.04,133.01,9.94746908]
[1768805249590,0.99509458,133.04,133.01,2.42934634]
[1768805254297,0.99509458,133.04,133.01,9.94738075]
[1768805254687,0.93509459,133.04,133.01,9.94738075]
[1768805256982,0.93509459,133.04,133.01,11.12782282]
[1768805257399,0.93509459,133.04,133.01,8.69847648]
[1768805257594,0.93509459,133.04,133.01,11.12782282]
[1768805258985,1.20745449,133.08,133.03,1.18115992]
[1768805259208,1.20745449,133.07,133.03,1.18115992]
[1768805259681,1.20745449,133.07,133.03,3.61050626]
[1768805260738,1.20745449,133.06,133.03,3.61050626]
[1768805260909,1.20745449,133.06,133.03,11.12746997]
[1768805261295,1.20745449,133.06,133.04,2.42934634]
[1768805261501,1.20745449,133.06,133.03,8.69812363]
[1768805261808,1.20745449,133.12,133.05,2.42934634]
[1768805261989,1.20745449,133.14,133.11,2.42934634]
[1768805263109,8.71858886,133.14,133.1,2.42934634]
[1768805263314,1.20745449,133.13,133.1,2.42934634]
[1768805263490,1.20745449,133.13,133.09,2.42934634]
[1768805264910,17.66745449,133.12,133.09,2.42934634]
[1768805267408,17.66745449,133.12,133.1,2.42934634]
[1768805274717,1.20745449,133.12,133.1,2.42934634]
[1768805274888,17.66209805,133.11,133.09,2.42934634]
[1768805276814,17.66209805,133.11,133.08,0.02070622]
[1768805277115,17.66209805,133.11,133.09,2.42934634]
[1768805278017,17.66209805,133.11,133.08,2.45005256]
[1768805278713,17.66209805,133.11,133.08,0.02070622]
[1768805278925,17.66209805,133.11,133.08,2.45005256]
[1768805279625,17.66209805,133.11,133.09,2.42934634]
[1768805279925,1.20209805,133.1,133.08,2.42934634]
[1768805280914,16.46,133.11,133.09,2.42934634]
[1768805282127,23.97204355,133.12,133.09,2.42934634]
[1768805283026,1.20209805,133.11,133.09,2.42934634]
[1768805288115,8.71375261,133.13,133.1,3.58210977]
[1768805288323,8.71375261,133.13,133.11,2.42934634]
[1768805288515,1.20209805,133.12,133.11,2.42934634]
[1768805289219,1.20209805,133.12,133.1,2.42934634]
[1768805289927,7.51165456,133.13,133.1,2.42934634]
[1768805290239,1.20209805,133.13,133.11,2.42934634]
[1768805291931,1.20209805,133.13,133.09,3.58210977]
[1768805292228,1.20209805,133.12,133.09,2.42934634]
[1768805292935,1.20209805,133.12,133.09,3.58210977]
[1768805294327,1.20209805,133.12,133.1,2.42934634]
[1768805294530,1.20209805,133.12,133.11,2.42934634]
[1768805294733,1.20209805,133.13,133.11,2.42934634]
[1768805294935,1.20209805,133.13,133.11,2.42809375]